bitfinex/quotes_BTCUSD_20250330
["timestamp","ask_amount","ask_price","bid_price","bid_amount"]
[1743352568560,0.44416529,82549.0,82548.0,0.7382959]
[1743352568780,0.43274252,82549.0,82548.0,0.7382959]
[1743352569010,0.44416102,82549.0,82548.0,0.7362959]
[1743352569240,0.03039882,82549.0,82548.0,0.85758073]
[1743352569663,0.01898032,82549.0,82548.0,0.85758073]
[1743352569889,0.01898032,82549.0,82548.0,0.71050073]
[1743352570122,0.01898032,82549.0,82548.0,0.85794073]
[1743352570349,0.01898032,82549.0,82548.0,0.85702073]
[1743352570597,0.03044603,82549.0,82548.0,0.85802073]
[1743352570877,0.0003368,82563.0,82548.0,0.97110673]
[1743352571131,0.0003368,82563.0,82562.0,0.254354]
[1743352571414,0.0003368,82563.0,82562.0,0.37463883]
[1743352573068,0.0003368,82563.0,82562.0,0.37763883]
[1743352573482,0.0003368,82563.0,82562.0,0.37463883]
[1743352573688,0.0003368,82563.0,82562.0,0.38163883]
[1743352573891,0.0003368,82563.0,82562.0,0.13939683]
[1743352574106,0.0003368,82563.0,82562.0,0.28279683]
[1743352574258,0.0003368,82563.0,82562.0,0.28579683]
[1743352574824,0.0003368,82563.0,82562.0,0.86247683]
[1743352575481,0.0003368,82563.0,82562.0,0.58368]
[1743352575482,0.2979937,82563.0,82562.0,0.58368]
[1743352575689,0.0003368,82563.0,82562.0,0.7302]
[1743352575893,0.01196225,82563.0,82562.0,0.7302]
[1743352576098,0.02407325,82563.0,82562.0,0.7302]
[1743352576632,0.43783545,82563.0,82562.0,0.7272]
[1743352576846,0.55812028,82563.0,82562.0,0.72708]
[1743352577046,0.55812028,82563.0,82562.0,0.72408]
[1743352577272,0.43783545,82563.0,82562.0,0.72408]
[1743352578423,0.43783545,82563.0,82562.0,0.72508]
[1743352579112,0.43783545,82563.0,82562.0,0.72488]
[1743352582006,0.43783545,82563.0,82562.0,0.57868]
[1743352582207,0.43783545,82563.0,82562.0,0.72464]
[1743352584354,0.43783545,82563.0,82562.0,0.14796]
[1743352585886,0.55812028,82563.0,82562.0,0.14796]
[1743352586463,0.85812028,82563.0,82562.0,0.002]
[1743352586656,0.87266113,82563.0,82562.0,0.14776]
[1743352587660,0.77474106,82563.0,82562.0,0.14676]
[1743352587863,0.77474106,82563.0,82558.0,0.57664]
[1743352587864,0.554362,82559.0,82558.0,0.57664]
[1743352588071,0.554362,82559.0,82558.0,0.72228]
[1743352588277,0.56586794,82559.0,82558.0,0.72228]
[1743352589086,0.5882327,82559.0,82558.0,0.72228]
[1743352589223,0.5892327,82559.0,82558.0,0.72228]
[1743352589434,0.0348707,82559.0,82558.0,0.976645]
[1743352589646,0.0348707,82559.0,82558.0,1.09692983]
[1743352589851,0.0358707,82559.0,82558.0,1.09692983]
[1743352590725,0.0338707,82559.0,82558.0,1.09692983]
[1743352590935,0.0338707,82559.0,82558.0,1.09792983]
[1743352591132,0.0338707,82559.0,82558.0,1.09892983]
[1743352594633,0.02236476,82559.0,82558.0,1.09892983]
[1743352594835,0.02236476,82559.0,82558.0,1.09792983]
[1743352595060,0.02236476,82559.0,82558.0,1.10092983]
[1743352595265,0.02236476,82559.0,82558.0,1.09992983]
[1743352595494,0.02236476,82559.0,82558.0,1.09692983]
[1743352595777,0.0003368,82563.0,82562.0,0.254354]
[1743352595977,0.0003368,82563.0,82562.0,0.37463883]
[1743352597208,0.0003368,82563.0,82562.0,0.45553883]
[1743352597635,0.0003368,82563.0,82562.0,0.45753883]
[1743352598472,0.0003368,82563.0,82562.0,0.45953883]
[1743352599766,0.0003368,82563.0,82562.0,0.45753883]
[1743352599972,0.0003368,82563.0,82562.0,0.45853883]
[1743352600186,0.0003368,82563.0,82562.0,0.46153883]
[1743352604127,0.0003368,82563.0,82562.0,0.45853883]
[1743352604534,0.0003368,82563.0,82562.0,0.46453883]
[1743352604731,0.0003368,82563.0,82562.0,0.46153883]
[1743352604978,0.0003368,82563.0,82562.0,0.46453883]
[1743352605442,0.0003368,82563.0,82562.0,0.46653883]
[1743352605812,0.0003368,82563.0,82562.0,0.47153883]
[1743352607687,0.0003368,82563.0,82562.0,0.4806553]
[1743352615387,0.0003368,82563.0,82562.0,0.4756553]
[1743352615589,0.0003368,82563.0,82562.0,0.6199753]
[1743352615944,0.0003368,82563.0,82562.0,0.4756553]
[1743352616126,0.0003368,82563.0,82562.0,0.6199353]
[1743352616326,0.0003368,82563.0,82562.0,1.1963753]
[1743352617020,0.0003368,82563.0,82562.0,1.1962553]
[1743352620148,0.0003368,82563.0,82562.0,1.0520953]
[1743352620360,0.0003368,82563.0,82562.0,1.10595883]
[1743352620947,0.0003368,82563.0,82562.0,1.10591883]
[1743352621165,0.0003368,82563.0,82562.0,1.10599883]
[1743352621995,0.0003368,82563.0,82562.0,0.96207883]
[1743352621996,0.01930547,82563.0,82562.0,0.96207883]
[1743352622201,0.01930547,82563.0,82562.0,1.10611883]
[1743352622411,0.01930547,82563.0,82562.0,1.10011883]
[1743352622611,0.01930547,82563.0,82562.0,1.09511883]
[1743352622845,0.01930547,82563.0,82562.0,1.10011883]
[1743352623272,0.0417675,82563.0,82562.0,1.10011883]
[1743352624001,0.0417675,82563.0,82562.0,1.10311883]
[1743352624406,0.0417675,82563.0,82562.0,0.95907883]
[1743352624623,0.0417675,82563.0,82562.0,0.84852483]
[1743352625033,0.0417675,82563.0,82562.0,0.86063683]
[1743352626345,0.0417675,82563.0,82562.0,0.86043683]
[1743352626545,0.0417675,82563.0,82562.0,0.85543683]
[1743352626740,0.0417675,82563.0,82562.0,0.85843683]
[1743352627001,0.0417675,82563.0,82562.0,0.85543683]
[1743352627361,0.0417675,82563.0,82562.0,0.85743683]
[1743352629731,8.3e-07,82563.0,82562.0,1.28663683]
[1743352629945,8.3e-07,82563.0,82562.0,1.31163683]
[1743352630366,8.3e-07,82563.0,82562.0,1.31663683]
[1743352630701,8.3e-07,82563.0,82562.0,1.31163683]
[1743352631107,1e-07,82564.0,82563.0,0.58435]
[1743352631311,1e-07,82564.0,82563.0,0.94463483]
[1743352632218,1e-07,82564.0,82563.0,0.95063483]
[1743352632938,1e-07,82564.0,82563.0,0.95663483]
[1743352633600,1e-07,82564.0,82563.0,0.95063483]
[1743352633828,1e-07,82564.0,82563.0,0.95663483]
[1743352634567,1e-07,82564.0,82563.0,0.93552982]
[1743352634771,1e-07,82564.0,82563.0,1.10416982]
[1743352635470,1e-07,82564.0,82563.0,1.07916982]
[1743352635715,1e-07,82564.0,82563.0,0.53031483]
[1743352635927,0.4137623,82564.0,82563.0,0.14968]
[1743352636163,0.49312776,82564.0,82563.0,0.15568]
[1743352636563,0.50522054,82564.0,82563.0,0.40403]
[1743352636767,0.52419142,82564.0,82563.0,0.39803]
[1743352636970,0.44407711,82564.0,82563.0,0.40403]
[1743352637170,0.44407711,82564.0,82563.0,0.40203]
[1743352637422,0.44407711,82564.0,82563.0,0.40503]
[1743352638037,0.44407711,82564.0,82563.0,0.007]
[1743352638201,0.52587711,82564.0,82563.0,0.1508]
[1743352638400,0.66735457,82564.0,82563.0,0.003]
[1743352638777,0.98189542,82564.0,82563.0,0.007]
[1743352639435,0.98189542,82564.0,82563.0,0.003]
[1743352639636,1.10218025,82564.0,82563.0,0.001]
[1743352639852,0.33619,82550.0,82539.0,0.012115]
[1743352639971,0.34735462,82550.0,82549.0,0.72032]
[1743352640593,0.36632925,82550.0,82549.0,0.72032]
[1743352641079,0.66632925,82550.0,82549.0,0.72132]
[1743352641280,0.66632925,82550.0,82549.0,0.72124]
[1743352642105,0.66632925,82550.0,82549.0,0.72324]
[1743352642317,0.66632925,82550.0,82549.0,0.5794]
[1743352642533,0.66632925,82550.0,82549.0,0.72112]
[1743352642727,0.68872314,82550.0,82549.0,0.72112]
[1743352642938,0.68872314,82550.0,82549.0,0.72012]
[1743352643574,0.68872314,82550.0,82505.0,0.1063]
[1743352643575,0.32665485,82549.0,82547.0,0.1436]
[1743352643786,3.22668675,82549.0,82505.0,0.254528]
[1743352644016,3.22668675,82549.0,82500.0,1.92052709]
[1743352644017,0.254542,82501.0,82500.0,1.92052709]
[1743352644222,1.323868,82501.0,82500.0,1.92052709]
[1743352644440,0.984172,82501.0,82500.0,1.92052709]
[1743352644667,0.67408551,82501.0,82500.0,1.92052709]
[1743352644868,0.41954351,82501.0,82500.0,1.92052709]
[1743352645111,0.11954351,82501.0,82500.0,1.92052709]
[1743352645343,0.0926648,82501.0,82500.0,1.92052709]
[1743352645569,0.0108648,82501.0,82500.0,1.93312061]
[1743352645775,0.02899458,82501.0,82500.0,1.93312061]
[1743352645994,0.09787618,82501.0,82500.0,1.92099961]
[1743352646427,0.09787618,82501.0,82500.0,1.93312061]
[1743352646638,0.09887618,82501.0,82500.0,1.92099961]
[1743352646846,0.11099718,82501.0,82500.0,1.92099961]
[1743352647103,0.1299828,82501.0,82500.0,1.92099961]
[1743352647318,0.24364042,82501.0,82500.0,1.92099961]
[1743352647741,0.97194347,82501.0,82500.0,1.92099961]
[1743352647939,0.85828585,82501.0,82500.0,1.92099961]
[1743352648148,1.20472968,82501.0,82500.0,1.92099961]
[1743352648364,1.33302968,82501.0,82500.0,1.92099961]
[1743352648573,1.32703358,82501.0,82500.0,1.88616609]
[1743352648777,1.44731841,82501.0,82500.0,1.88616609]
[1743352648982,1.13064158,82501.0,82500.0,1.88616609]
[1743352649197,1.30225958,82501.0,82500.0,1.21521247]
[1743352649406,1.28627396,82501.0,82500.0,0.79477247]
[1743352649617,1.42554691,82501.0,82500.0,0.74010937]
[1743352650052,1.43054691,82501.0,82500.0,0.6340751]
[1743352650260,1.38394691,82501.0,82500.0,0.4439751]
[1743352650474,1.38394691,82501.0,82500.0,0.39083042]
[1743352650901,1.24495708,82501.0,82500.0,0.39083042]
[1743352651136,1.07250323,82501.0,82500.0,0.39083042]
[1743352651343,1.08704408,82501.0,82500.0,0.39083042]
[1743352651559,1.08504408,82501.0,82500.0,0.39083042]
[1743352651974,1.00634408,82501.0,82500.0,0.39083042]
[1743352652183,1.10844891,82501.0,82500.0,0.39083042]
[1743352652394,1.10944891,82501.0,82500.0,0.39083042]
[1743352652603,1.10544891,82501.0,82500.0,0.39083042]
[1743352652808,1.10944891,82501.0,82500.0,0.39083042]
[1743352653009,1.11344891,82501.0,82500.0,0.39083042]
[1743352654331,1.14988891,82501.0,82500.0,0.39083042]
[1743352655463,0.554604,82481.0,82480.0,0.0001686]
[1743352655666,0.554604,82481.0,82464.0,0.02854232]
[1743352655667,0.25703785,82475.0,82464.0,0.02854232]
[1743352655877,0.57980647,82475.0,82474.0,0.20448]
[1743352656300,1.13284508,82475.0,82474.0,0.025]
[1743352656521,1.24989702,82475.0,82474.0,0.025]
[1743352656729,1.04914573,82475.0,82474.0,0.025]
[1743352656938,1.04961805,82475.0,82474.0,0.025]
[1743352657365,1.05161805,82475.0,82474.0,0.025]
[1743352657804,0.8678489,82475.0,82474.0,0.025]
[1743352658402,0.92582982,82475.0,82474.0,0.2048]
[1743352658659,0.93837067,82475.0,82474.0,0.2048]
[1743352658864,0.94137067,82475.0,82474.0,0.2048]
[1743352659069,0.94437067,82475.0,82474.0,0.2048]
[1743352659275,0.92918482,82475.0,82474.0,0.2048]
[1743352659482,0.92918482,82475.0,82474.0,0.025]
[1743352660172,0.8712039,82475.0,82474.0,0.025]
[1743352661115,0.8712039,82475.0,82474.0,0.0251685]
[1743352661533,0.02666585,82472.0,82471.0,0.17809151]
[1743352661793,0.74042763,82472.0,82471.0,0.17809151]
[1743352662007,0.73644236,82472.0,82471.0,0.17809151]
[1743352662473,0.77302784,82472.0,82471.0,0.17809151]
[1743352662895,0.90785352,82472.0,82471.0,0.17809151]
[1743352663106,0.90785352,82472.0,82464.0,0.02854232]
[1743352663107,0.254653,82465.0,82464.0,0.02854232]
[1743352663314,0.98295563,82465.0,82464.0,0.20822232]
[1743352663523,0.99354107,82465.0,82464.0,0.20822232]
[1743352663735,1.03012655,82465.0,82464.0,0.18088423]
[1743352664033,1.12905188,82465.0,82464.0,0.18088423]
[1743352664367,1.20232228,82465.0,82464.0,0.18088423]
[1743352664805,1.20232228,82465.0,82464.0,0.00120423]
[1743352664977,1.20232228,82465.0,82464.0,0.18064423]
[1743352665183,1.20532228,82465.0,82464.0,0.18064423]
[1743352665751,1.11085099,82465.0,82464.0,0.18064423]
[1743352665969,1.11285099,82465.0,82464.0,0.18064423]
[1743352666381,0.55819799,82465.0,82464.0,0.18064423]
[1743352666490,0.55819799,82465.0,82464.0,0.19277023]
[1743352666704,0.55819799,82465.0,82464.0,0.25574423]
[1743352667067,0.56911607,82465.0,82464.0,0.25574423]
[1743352667275,0.55392852,82465.0,82464.0,0.25574423]
[1743352667886,0.55192852,82465.0,82464.0,0.25574423]
[1743352668084,0.54892852,82465.0,82464.0,0.25574423]
[1743352668221,0.54992852,82465.0,82464.0,0.25574423]
[1743352668424,0.53141954,82465.0,82464.0,0.25574423]
[1743352669485,0.53041954,82465.0,82464.0,0.25574423]
[1743352669928,0.53141954,82465.0,82464.0,0.25574423]
[1743352670128,0.58456149,82465.0,82464.0,0.18064423]
[1743352670325,0.59668749,82465.0,82464.0,0.18064423]
[1743352670899,0.51457672,82465.0,82464.0,0.34712906]
[1743352671104,0.51457672,82465.0,82464.0,0.35925506]
[1743352671304,0.51357672,82465.0,82464.0,0.35925506]
[1743352671502,0.51257672,82465.0,82464.0,0.43435506]
[1743352671934,0.07982005,82465.0,82464.0,0.43435506]
[1743352672310,0.06923461,82465.0,82464.0,0.43435506]
[1743352673060,0.06923461,82465.0,82464.0,0.43452366]
[1743352673262,0.06957181,82465.0,82464.0,0.43452366]
[1743352673903,0.08749354,82465.0,82464.0,0.43452366]
[1743352674111,0.00047232,82475.0,82474.0,0.254625]
[1743352674326,0.00047232,82475.0,82474.0,0.54834823]
[1743352676273,0.00047232,82475.0,82474.0,0.54934823]
[1743352678506,3.2e-07,82475.0,82474.0,0.89866554]
[1743352678724,3.2e-07,82475.0,82474.0,1.38336554]
[1743352678897,3.2e-07,82475.0,82474.0,1.38236554]
[1743352679316,0.00100032,82475.0,82474.0,1.38336554]
[1743352679529,0.000337,82501.0,82500.0,0.378845]
[1743352679894,0.000337,82501.0,82500.0,1.25392983]
[1743352680514,1e-06,82501.0,82500.0,1.25392983]
[1743352680732,1e-06,82501.0,82500.0,1.55392983]
[1743352680916,1e-06,82501.0,82500.0,1.55407061]
[1743352681150,1e-06,82501.0,82500.0,1.60620901]
[1743352681383,1e-06,82501.0,82500.0,1.63620901]
[1743352681631,1e-06,82501.0,82500.0,1.67694128]
[1743352681833,1e-06,82501.0,82500.0,1.65164508]
[1743352682041,0.3,82544.0,82542.0,0.254415]
[1743352682253,0.242272,82552.0,82543.0,0.75408]
[1743352682457,0.254391,82550.0,82543.0,0.75408]
[1743352682668,0.312114,82549.0,82543.0,0.75408]
[1743352682867,0.3,82547.0,82543.0,0.75408]
[1743352683073,0.012114,82545.0,82543.0,0.75408]
[1743352683282,0.003,82544.0,82543.0,0.75408]
[1743352683896,0.02197744,82544.0,82543.0,0.75408]
[1743352684110,0.02197744,82544.0,82543.0,1.24096183]
[1743352684337,0.02197744,82544.0,82543.0,1.25307583]
[1743352684560,0.26127244,82544.0,82543.0,0.75524]
[1743352684863,0.01897744,82544.0,82543.0,0.88763883]
[1743352685076,0.02097744,82544.0,82543.0,0.88763883]
[1743352685489,0.01897744,82544.0,82543.0,0.88763883]
[1743352685848,0.01997744,82544.0,82543.0,0.96345971]
[1743352686054,0.001,82544.0,82543.0,0.88851883]
[1743352686242,4.725e-05,82545.0,82544.0,0.254409]
[1743352686465,4.725e-05,82545.0,82544.0,0.37469383]
[1743352688426,4.725e-05,82545.0,82544.0,0.37769383]
[1743352689058,4.725e-05,82545.0,82544.0,0.40236977]
[1743352689259,4.725e-05,82545.0,82544.0,0.57948977]
[1743352689639,4.725e-05,82545.0,82544.0,0.18016]
[1743352690302,0.00754822,82545.0,82544.0,0.18216]
[1743352690728,0.00754822,82545.0,82544.0,0.192274]
[1743352690938,4.725e-05,82545.0,82544.0,0.189274]
[1743352691351,4.725e-05,82545.0,82544.0,0.190274]
[1743352691545,4.725e-05,82545.0,82544.0,0.013114]
[1743352691744,4.725e-05,82545.0,82544.0,0.189754]
[1743352692048,4.725e-05,82545.0,82544.0,0.17764]
[1743352692507,4.725e-05,82545.0,82544.0,0.189754]
[1743352695080,4.725e-05,82545.0,82544.0,0.17764]
[1743352695290,0.00755967,82545.0,82544.0,0.17764]
[1743352695520,4.725e-05,82545.0,82544.0,0.17764]
[1743352695896,0.00755967,82545.0,82544.0,0.17764]
[1743352697414,0.00755967,82545.0,82544.0,0.37569383]
[1743352697634,0.00755967,82545.0,82544.0,0.55025383]
[1743352697973,0.00789647,82545.0,82544.0,0.55025383]
[1743352699592,0.02687137,82545.0,82544.0,0.55025383]
[1743352701825,0.02687137,82545.0,82544.0,0.57432971]
[1743352702339,0.02687137,82545.0,82544.0,0.57332971]
[1743352702542,0.03803383,82545.0,82544.0,0.55125383]
[1743352702749,0.29243983,82545.0,82544.0,0.003]
[1743352702966,0.06037228,82545.0,82544.0,0.1756]
[1743352703195,0.05285986,82545.0,82544.0,0.1756]
[1743352703391,0.06037386,82545.0,82544.0,0.432009]
[1743352703589,0.07073003,82545.0,82544.0,0.1776]
[1743352703802,0.07824403,82545.0,82544.0,0.1776]
[1743352704023,0.15456343,82545.0,82544.0,0.17532]
[1743352704223,0.15456343,82545.0,82544.0,0.17332]
[1743352704430,0.19033503,82545.0,82544.0,0.17332]
[1743352704672,0.19033503,82545.0,82544.0,0.17632]
[1743352705057,0.19033503,82545.0,82544.0,0.17332]
[1743352705229,0.11401563,82545.0,82544.0,0.185434]
[1743352705407,0.11401563,82545.0,82544.0,0.17432]
[1743352705628,0.11401563,82545.0,82544.0,0.17532]
[1743352705825,0.11401563,82545.0,82544.0,0.186434]
[1743352706583,0.09504073,82545.0,82544.0,0.1470105]
[1743352707150,0.09504073,82545.0,82544.0,0.17328]
[1743352708475,0.4274446,82545.0,82544.0,0.17328]
[1743352708672,0.4274446,82545.0,82543.0,0.57704]
[1743352708673,0.312114,82544.0,82543.0,0.57704]
[1743352708849,0.33411336,82544.0,82543.0,0.74896]
[1743352709692,0.41120152,82544.0,82543.0,0.6943316]
[1743352709928,0.41420152,82544.0,82543.0,0.6943316]
[1743352710177,0.41420152,82544.0,82543.0,1.06902743]
[1743352710178,0.5346793,82544.0,82543.0,1.06902743]
[1743352710621,0.52722079,82544.0,82543.0,1.06902743]
[1743352710848,0.53330889,82544.0,82543.0,1.06902743]
[1743352711078,0.53030889,82544.0,82543.0,1.06902743]
[1743352711541,0.51243872,82544.0,82543.0,0.9483026]
[1743352711746,0.47666712,82544.0,82543.0,0.9483026]
[1743352712211,0.47666712,82544.0,82543.0,0.9493026]
[1743352712417,0.53651994,82544.0,82543.0,0.5234116]
[1743352712614,0.52535748,82544.0,82543.0,0.6947716]
[1743352712799,0.47761866,82544.0,82543.0,0.6947716]
[1743352712999,0.47761866,82544.0,82543.0,0.6946116]
[1743352713784,0.49215951,82544.0,82543.0,0.5224116]
[1743352713983,0.91644434,82544.0,82543.0,0.5224116]
[1743352715024,0.79615951,82544.0,82543.0,0.5224116]
[1743352716728,0.7771814,82544.0,82543.0,0.5224116]
[1743352717749,0.7771814,82544.0,82543.0,0.6924116]
[1743352719726,0.79615948,82544.0,82543.0,0.6924116]
[1743352720357,0.46950463,82544.0,82543.0,0.9468226]
[1743352721254,0.46950463,82544.0,82543.0,1.06710743]
[1743352721466,0.46750463,82544.0,82543.0,1.06710743]
[1743352721640,0.46850463,82544.0,82543.0,1.06710743]
[1743352722424,0.46650463,82544.0,82543.0,1.06710743]
[1743352722629,0.44516618,82544.0,82543.0,1.06710743]
[1743352722859,0.44416618,82544.0,82543.0,1.06710743]
[1743352723064,0.44316618,82544.0,82543.0,1.06710743]
[1743352723269,0.44316618,82544.0,82543.0,1.06810743]
[1743352723939,0.44316618,82544.0,82543.0,1.06927573]
[1743352724242,0.44350278,82544.0,82543.0,1.06927573]
[1743352724662,0.44350278,82544.0,82543.0,1.06827573]
[1743352724811,0.44350278,82544.0,82543.0,1.07027573]
[1743352726039,0.02540278,82544.0,82543.0,1.07027573]
[1743352726455,0.0003366,82544.0,82543.0,1.07027573]
[1743352726694,0.0003366,82544.0,82543.0,1.15267573]
[1743352726920,0.0003366,82544.0,82543.0,1.15067573]
[1743352727140,0.0003366,82544.0,82543.0,1.14967573]
[1743352727364,0.0003366,82544.0,82543.0,1.15367573]
[1743352727569,0.0003366,82544.0,82543.0,1.15667573]
[1743352732301,0.00038405,82545.0,82544.0,0.317114]
[1743352732302,6.5e-07,82545.0,82544.0,0.317114]
[1743352732506,6.5e-07,82545.0,82544.0,0.51979883]
[1743352733312,6.5e-07,82548.0,82547.0,0.6865]
[1743352733503,0.4181,82583.0,82563.0,0.25435]
[1743352733661,0.0003376,82584.0,82563.0,0.62387483]
[1743352735130,1e-07,82569.0,82568.0,0.254335]
[1743352735333,1e-07,82569.0,82568.0,0.80671983]
[1743352736662,1e-07,82569.0,82568.0,0.83522299]
[1743352737094,1e-07,82569.0,82568.0,0.86422299]
[1743352738197,1e-07,82569.0,82568.0,0.87661455]
[1743352738394,1e-07,82569.0,82568.0,0.87261455]
[1743352738806,1e-07,82569.0,82568.0,0.87461455]
[1743352739013,1e-07,82569.0,82568.0,1.00326299]
[1743352739223,1e-07,82569.0,82568.0,0.84322299]
[1743352739429,1e-07,82569.0,82568.0,0.99710299]
[1743352739634,1e-07,82569.0,82568.0,1.00310299]
[1743352739839,1e-07,82569.0,82568.0,1.00910299]
[1743352740040,1e-07,82569.0,82568.0,1.16410299]
[1743352740243,1e-07,82569.0,82568.0,1.15810299]
[1743352740448,1e-07,82569.0,82568.0,1.15510299]
[1743352740833,1e-07,82569.0,82568.0,1.16010299]
[1743352741767,1e-07,82569.0,82568.0,1.15710299]
[1743352742701,1e-07,82569.0,82568.0,1.16310299]
[1743352743060,1e-07,82569.0,82568.0,1.00810299]
[1743352743235,1e-07,82569.0,82568.0,1.00310299]
[1743352743437,1e-07,82569.0,82568.0,1.00910299]
[1743352744395,1e-07,82569.0,82568.0,1.00310299]
[1743352744562,1e-07,82569.0,82568.0,1.00910299]
[1743352745373,1e-07,82569.0,82568.0,1.00310299]
[1743352745798,1e-07,82569.0,82568.0,1.00910299]
[1743352746402,0.0003376,82584.0,82568.0,1.00910299]
[1743352746403,0.0003376,82584.0,82583.0,0.254289]
[1743352746633,0.0003376,82584.0,82583.0,1.08061383]
[1743352746634,0.00081077,82584.0,82583.0,1.08061383]
[1743352746799,7.7e-07,82584.0,82583.0,1.77288507]
[1743352747664,7.7e-07,82584.0,82583.0,1.79863368]
[1743352747940,7.7e-07,82584.0,82583.0,1.79663368]
[1743352748121,7.7e-07,82584.0,82583.0,1.43436244]
[1743352748663,7.7e-07,82584.0,82583.0,1.43936244]
[1743352749068,7.7e-07,82584.0,82583.0,1.43436244]
[1743352749270,7.7e-07,82584.0,82583.0,1.44036244]
[1743352749525,7.7e-07,82584.0,82583.0,1.80263368]
[1743352750153,7.7e-07,82584.0,82583.0,1.80863368]
[1743352751356,7.7e-07,82584.0,82583.0,1.80363368]
[1743352751893,7.7e-07,82584.0,82583.0,1.94315368]
[1743352752226,7.7e-07,82584.0,82583.0,1.89631368]
[1743352752447,7.7e-07,82584.0,82583.0,1.73183368]
[1743352752648,7.7e-07,82584.0,82583.0,1.80139368]
[1743352752849,7.7e-07,82584.0,82583.0,1.50639368]
[1743352753045,7.7e-07,82584.0,82583.0,1.51239368]
[1743352753261,7.7e-07,82584.0,82583.0,1.15004244]
[1743352753470,7.7e-07,82584.0,82583.0,0.98576244]
[1743352753670,7.7e-07,82584.0,82583.0,1.15004244]
[1743352754594,7.7e-07,82584.0,82583.0,1.14404244]
[1743352754970,7.7e-07,82584.0,82583.0,1.14704244]
[1743352755595,7.7e-07,82584.0,82583.0,1.13904244]
[1743352755766,7.7e-07,82584.0,82583.0,1.14504244]
[1743352755954,7.7e-07,82584.0,82583.0,1.14704244]
[1743352756154,7.7e-07,82584.0,82583.0,1.14504244]
[1743352756399,7.7e-07,82584.0,82583.0,1.14460244]
[1743352756575,7.7e-07,82584.0,82583.0,1.14960244]
[1743352757593,7.7e-07,82584.0,82583.0,1.22560244]
[1743352758624,7.7e-07,82584.0,82583.0,1.52560244]
[1743352759827,7.7e-07,82584.0,82583.0,1.52060244]
[1743352760146,7.7e-07,82584.0,82583.0,1.52677064]
[1743352760940,0.00033717,82584.0,82583.0,1.45077064]
[1743352761078,0.00033717,82584.0,82583.0,0.98693064]
[1743352761281,0.00033717,82584.0,82583.0,1.14377064]
[1743352761477,0.00033717,82584.0,82583.0,1.14977064]
[1743352762073,0.00033717,82584.0,82583.0,1.13777064]
[1743352762269,0.00033717,82584.0,82583.0,1.14277064]
[1743352763567,0.00033717,82584.0,82583.0,0.97993064]
[1743352763772,0.00033717,82584.0,82583.0,1.14241064]
[1743352768831,1.7e-07,82584.0,82583.0,1.51851064]
[1743352769168,1.7e-07,82584.0,82583.0,1.99456797]
[1743352769736,1.7e-07,82584.0,82583.0,2.00167567]
[1743352769910,1.7e-07,82584.0,82583.0,2.00667567]
[1743352770327,1.7e-07,82584.0,82583.0,2.00167567]
[1743352770712,1.7e-07,82584.0,82583.0,1.99867567]
[1743352771711,1.7e-07,82584.0,82583.0,2.01067567]
[1743352771917,1.7e-07,82584.0,82583.0,2.02521652]
[1743352772137,1.7e-07,82584.0,82583.0,2.01921652]
[1743352772319,1.7e-07,82584.0,82583.0,2.02521652]
[1743352773342,1.7e-07,82584.0,82583.0,2.16067567]
[1743352773769,0.000337,82606.0,82605.0,0.676321]
[1743352773977,0.0003374,82625.0,82623.0,0.012103]
[1743352774185,0.0003374,82625.0,82623.0,0.87232812]
[1743352774335,0.00047931,82624.0,82623.0,0.86990783]
[1743352775513,0.00047931,82624.0,82623.0,0.87190783]
[1743352775709,0.00047931,82624.0,82623.0,0.87490783]
[1743352776451,0.00047931,82624.0,82623.0,0.89886946]
[1743352776948,0.00047931,82624.0,82623.0,0.9107722]
[1743352780371,0.00047931,82624.0,82623.0,0.7495322]
[1743352780618,0.00047931,82624.0,82623.0,0.9095322]
[1743352781096,0.00047931,82624.0,82623.0,0.98435308]
[1743352781313,0.00047931,82624.0,82623.0,0.9095322]
[1743352783162,0.00047931,82624.0,82623.0,1.3680322]
[1743352783163,3.1e-07,82624.0,82623.0,1.3680322]
[1743352783362,0.000337,82652.0,82645.0,0.012099]
[1743352783556,0.000337,82652.0,82645.0,0.56415204]
[1743352783803,0.000337,82652.0,82645.0,0.56173243]
[1743352784356,0.000337,82652.0,82645.0,0.53370183]
[1743352784533,0.000337,82652.0,82645.0,0.12028483]
[1743352784740,0.01895066,82651.0,82645.0,0.29166383]
[1743352784962,0.01895066,82651.0,82645.0,0.53466183]
[1743352785586,0.01895066,82651.0,82645.0,0.53566183]
[1743352786583,0.000337,82652.0,82645.0,0.53566183]
[1743352787614,0.000337,82652.0,82645.0,1.11162183]
[1743352789350,0.000337,82652.0,82645.0,0.95234183]
[1743352789545,0.000337,82652.0,82645.0,0.86894383]
[1743352791219,0.01928801,82652.0,82645.0,0.86894383]
[1743352796568,0.000337,82652.0,82645.0,0.86894383]
[1743352797848,0.000337,82652.0,82645.0,0.71034383]
[1743352798050,0.000337,82652.0,82645.0,0.977318]
[1743352798256,0.000337,82652.0,82645.0,0.989417]
[1743352799600,0.4181,82651.0,82645.0,0.989417]
[1743352799785,0.4181,82651.0,82645.0,1.15830183]
[1743352802892,0.000337,82652.0,82646.0,0.312099]
[1743352802893,6e-07,82647.0,82646.0,0.312099]
[1743352803086,6e-07,82647.0,82646.0,0.87795507]
[1743352804410,6e-07,82647.0,82646.0,1.06395507]
[1743352804811,6e-07,82647.0,82646.0,1.06895507]
[1743352805820,0.0003368,82667.0,82666.0,0.554033]
[1743352806017,0.004,82689.0,82688.0,0.012093]
[1743352806218,0.00447308,82689.0,82688.0,1.10749083]
[1743352807721,0.00464118,82689.0,82688.0,1.10749083]
[1743352808663,0.00464118,82689.0,82688.0,1.13337783]
[1743352809308,0.00464118,82689.0,82688.0,1.13137783]
[1743352809516,0.00464118,82689.0,82688.0,1.13337783]
[1743352810107,0.00464118,82689.0,82688.0,0.97397783]
[1743352810329,0.00464118,82689.0,82688.0,0.73612]
[1743352810330,0.06393418,82689.0,82688.0,0.73612]
[1743352810518,0.08287426,82689.0,82688.0,0.73612]
[1743352810728,0.58253344,82689.0,82688.0,0.73824]
[1743352810933,0.58253344,82689.0,82688.0,0.73624]
[1743352811361,0.58253344,82689.0,82688.0,0.73612]
[1743352811362,0.81551511,82689.0,82688.0,0.73612]
[1743352811776,0.81551511,82689.0,82688.0,0.73312]
[1743352811982,0.81551511,82689.0,82661.0,0.254046]
[1743352811983,0.254033,82667.0,82661.0,0.254048]
[1743352812186,0.241929,82669.0,82663.0,0.241946]
[1743352812403,0.4181,82675.0,82662.0,0.86522183]
[1743352812404,0.4181,82675.0,82672.0,0.241919]
[1743352812628,0.4181,82675.0,82674.0,0.012095]
[1743352812835,0.4181,82675.0,82674.0,0.13237983]
[1743352813373,0.4181,82675.0,82670.0,0.012096]
[1743352813576,0.4181,82675.0,82673.0,0.254011]
[1743352813784,0.4181,82675.0,82674.0,0.012095]
[1743352814415,0.4181,82675.0,82672.0,0.012095]